fUSD/lending_fUSD_20240217
["ID","MTS","AMOUNT","RATE_DAILY","PERIOD"]
[314266999,1708129844189,-500.0,0.00051779,2]
[314267001,1708129844199,-500.0,0.00051779,2]
[314267004,1708129844208,-500.0,0.00051779,2]
[314267006,1708129844218,-500.0,0.00051779,2]
[314267007,1708129844227,-500.0,0.00051779,2]
[314267009,1708129844236,-500.0,0.00051779,2]
[314267011,1708129844246,-500.0,0.00051779,2]
[314267013,1708129844257,-500.0,0.00051779,2]
[314267016,1708129844267,-500.0,0.00051779,2]
[314267017,1708129844276,-500.0,0.00051779,2]
[314267019,1708129844285,-500.0,0.00051779,2]
[314267021,1708129844294,-500.0,0.00051779,2]
[314267023,1708129844304,-500.0,0.00051779,2]
[314267025,1708129844313,-500.0,0.00051779,2]
[314267027,1708129844323,-500.0,0.0005178,60]
[314267029,1708129844333,-500.0,0.0005178,60]
[314267031,1708129844342,-1203.6,0.0005178,60]
[314267033,1708129844351,-500.0,0.0005178,60]
[314267035,1708129844360,-500.0,0.0005178,60]
[314267037,1708129844370,-500.0,0.0005178,60]
[314267039,1708129844379,-1246.43,0.0005178,60]
[314267041,1708129844388,-500.0,0.0005178,60]
[314267043,1708129844397,-1596.32,0.0005178,60]
[314267045,1708129844406,-500.0,0.0005178,60]
[314267047,1708129844415,-500.0,0.0005178,60]
[314267049,1708129844425,-614.97,0.0005178,60]
[314267051,1708129844434,-4240.9,0.0005178,60]
[314267053,1708129844443,-10798.57,0.0005178,60]
[314267055,1708129844452,-588.43,0.0005178,60]
[314267057,1708129844461,-500.0,0.0005178,60]
[314267059,1708129844470,-500.0,0.00051817,60]
[314267061,1708129844479,-500.0,0.00051817,60]
[314267063,1708129844488,-500.0,0.00051817,60]
[314267065,1708129844498,-500.0,0.00051817,60]
[314267067,1708129844507,-500.0,0.00051817,60]
[314267069,1708129844517,-658.42,0.00051817,60]
[314267071,1708129844526,-589.1919176,0.00051817,60]
[314267073,1708129844536,-855.06,0.00051817,60]
[314267075,1708129844546,-500.0,0.00051817,60]
[314267077,1708129844555,-806.06,0.00051817,60]
[314267079,1708129844564,-500.0,0.00051817,60]
[314267081,1708129844574,-500.0,0.00051817,60]
[314267083,1708129844583,-500.0,0.00051817,60]
[314267085,1708129844593,-500.0,0.00051917,60]
[314267087,1708129844602,-800.16,0.00051917,60]
[314267089,1708129844611,-500.0,0.00051917,60]
[314267091,1708129844621,-520.94,0.00051917,60]
[314267093,1708129844630,-590.03,0.00051917,60]
[314267095,1708129844640,-500.0,0.00051917,60]
[314267097,1708129844649,-500.0,0.00051917,60]
[314267099,1708129844658,-522.44,0.00051917,60]
[314267101,1708129844668,-500.0,0.00051917,60]
[314267103,1708129844678,-500.0,0.00051917,60]
[314267105,1708129844687,-500.0,0.00051917,60]
[314267107,1708129844697,-521.9420013,0.00051917,60]
[314267109,1708129844707,-898.43,0.00051917,60]
[314267111,1708129844717,-500.0,0.00051917,60]
[314267113,1708129844727,-500.0,0.00051917,60]
[314267115,1708129844736,-906.17,0.00051917,60]
[314267117,1708129844746,-500.0,0.00051917,60]
[314267119,1708129844755,-500.0,0.00051917,60]
[314267122,1708129844765,-3972.3,0.00051917,60]
[314267124,1708129844774,-500.0,0.00051917,60]
[314267126,1708129844783,-500.0,0.00051917,60]
[314267128,1708129844793,-522.42,0.00051917,60]
[314267130,1708129844802,-500.0,0.00051917,60]
[314267132,1708129844811,-656.94,0.00051917,60]
[314267133,1708129844824,-1056.56,0.00051917,14]
[314267135,1708129844833,-518.87,0.00051917,60]
[314267137,1708129844843,-675.21,0.00051917,60]
[314267139,1708129844852,-2600.75,0.00051917,60]
[314267141,1708129844861,-500.0,0.00051917,2]
[314267144,1708129844872,-500.0,0.00051917,60]
[314267145,1708129844882,-633.38361039,0.00051972,13]
[314267148,1708129844891,-10000.0,0.00052,120]
[314267150,1708129844901,-10000.0,0.00052,120]
[314267152,1708129844910,-500.0,0.00052054,60]
[314267154,1708129844919,-198.569043,0.00052054,30]
[314267156,1708129844928,-500.0,0.00052054,60]
[314267158,1708129844938,-1203.6,0.00052054,60]
[314267160,1708129844947,-500.0,0.00052054,60]
[314267162,1708129844957,-500.0,0.00052054,60]
[314267164,1708129844966,-500.0,0.00052054,60]
[314267166,1708129844975,-1246.43,0.00052054,60]
[314267167,1708129844985,-500.0,0.00052054,60]
[314267169,1708129844994,-1143.533333,0.00052054,30]
[314267172,1708129845003,-1596.32,0.00052054,60]
[314267174,1708129845013,-500.0,0.00052054,60]
[314267175,1708129845023,-500.0,0.00052054,60]
[314267177,1708129845036,-614.97,0.00052054,60]
[314267180,1708129845045,-4240.9,0.00052054,60]
[314267181,1708129845054,-10798.57,0.00052054,60]
[314267182,1708129845063,-588.43,0.00052054,60]
[314267183,1708129845074,-500.0,0.00052054,60]
[314267184,1708129845083,-155.64988521,0.00052067,2]
[314267185,1708129845093,-349.39,0.00052075,120]
[314267186,1708129845102,-500.0,0.00052091,60]
[314267187,1708129845112,-500.0,0.00052091,60]
[314267188,1708129845123,-500.0,0.00052091,60]
[314267189,1708129845132,-500.0,0.00052091,60]
[314267190,1708129845143,-500.0,0.00052091,60]
[314267191,1708129845152,-658.42,0.00052091,60]
[314267192,1708129845162,-855.06,0.00052091,60]
[314267193,1708129845171,-500.0,0.00052091,60]
[314267194,1708129845180,-806.06,0.00052091,60]
[314267195,1708129845190,-500.0,0.00052091,60]
[314267196,1708129845200,-500.0,0.00052091,60]
[314267197,1708129845210,-500.0,0.00052091,60]
[314267198,1708129845219,-592.8,0.0005217,2]
[314267199,1708129845229,-500.0,0.00052191,60]
[314267200,1708129845238,-800.16,0.00052191,60]
[314267201,1708129845247,-500.0,0.00052191,60]
[314267202,1708129845257,-520.94,0.00052191,60]
[314267203,1708129845267,-590.03,0.00052191,60]
[314267204,1708129845276,-500.0,0.00052191,60]
[314267205,1708129845286,-500.0,0.00052191,60]
[314267206,1708129845295,-522.44,0.00052191,60]
[314267207,1708129845304,-500.0,0.00052191,60]
[314267208,1708129845314,-500.0,0.00052191,60]
[314267209,1708129845326,-500.0,0.00052191,60]
[314267210,1708129845337,-898.43,0.00052191,60]
[314267211,1708129845347,-500.0,0.00052191,60]
[314267212,1708129845357,-500.0,0.00052191,60]
[314267213,1708129845367,-906.17,0.00052191,60]
[314267214,1708129845377,-500.0,0.00052191,60]
[314267215,1708129845388,-500.0,0.00052191,60]
[314267216,1708129845398,-3972.3,0.00052191,60]
[314267217,1708129845408,-500.0,0.00052191,60]
[314267218,1708129845418,-500.0,0.00052191,60]
[314267219,1708129845427,-522.42,0.00052191,60]
[314267220,1708129845436,-500.0,0.00052191,60]
[314267221,1708129845446,-656.94,0.00052191,60]
[314267222,1708129845456,-1056.56,0.00052191,14]
[314267223,1708129845465,-518.87,0.00052191,60]
[314267224,1708129845475,-675.21,0.00052191,60]
[314267225,1708129845485,-2600.75,0.00052191,60]
[314267226,1708129845494,-500.0,0.00052191,2]
[314267227,1708129845504,-500.0,0.00052191,60]
[314267228,1708129845513,-293.36941799,0.00052328,60]
[314267229,1708129845523,-500.0,0.00052328,60]
[314267230,1708129845532,-1203.6,0.00052328,60]
[314267231,1708129845542,-500.0,0.00052328,60]
[314267232,1708129845553,-500.0,0.00052328,60]
[314267233,1708129845563,-500.0,0.00052328,60]
[314267234,1708129845573,-1246.43,0.00052328,60]
[314267235,1708129845582,-500.0,0.00052328,60]
[314267236,1708129845592,-1596.32,0.00052328,60]
[314267237,1708129845601,-500.0,0.00052328,60]
[314267238,1708129845611,-500.0,0.00052328,60]
[314267239,1708129845621,-614.97,0.00052328,60]
[314267240,1708129845630,-4240.9,0.00052328,60]
[314267241,1708129845640,-10798.57,0.00052328,60]
[314267242,1708129845651,-588.43,0.00052328,60]
[314267243,1708129845661,-500.0,0.00052328,60]
[314267244,1708129845670,-500.0,0.00052365,60]
[314267245,1708129845680,-500.0,0.00052365,60]
[314267246,1708129845690,-500.0,0.00052365,60]
[314267247,1708129845700,-500.0,0.00052365,60]
[314267248,1708129845709,-500.0,0.00052365,60]
[314267249,1708129845719,-658.42,0.00052365,60]
[314267250,1708129845729,-855.06,0.00052365,60]
[314267251,1708129845738,-500.0,0.00052365,60]
[314267252,1708129845748,-806.06,0.00052365,60]
[314267253,1708129845757,-500.0,0.00052365,60]
[314267254,1708129845767,-500.0,0.00052365,60]
[314267255,1708129845777,-500.0,0.00052365,60]
[314267256,1708129845787,-153.87,0.000524,7]
[314267257,1708129845797,-153.87,0.000524,7]
[314267258,1708129845807,-153.87,0.000524,7]
[314267259,1708129845817,-153.87,0.000524,7]
[314267260,1708129845827,-153.87,0.000524,7]
[314267261,1708129845837,-153.87,0.000524,7]
[314267262,1708129845847,-153.87,0.000524,7]
[314267263,1708129845857,-154.13,0.000524,7]
[314267264,1708129845867,-154.13,0.000524,7]
[314267265,1708129845876,-154.13,0.000524,7]
[314267266,1708129845886,-500.0,0.00052465,60]
[314267267,1708129845895,-800.16,0.00052465,60]
[314267269,1708129845905,-500.0,0.00052465,60]
[314267270,1708129845914,-520.94,0.00052465,60]
[314267271,1708129845924,-590.03,0.00052465,60]
[314267272,1708129845934,-500.0,0.00052465,60]
[314267273,1708129845943,-500.0,0.00052465,60]
[314267274,1708129845953,-522.44,0.00052465,60]
[314267275,1708129845963,-500.0,0.00052465,60]
[314267277,1708129845972,-500.0,0.00052465,60]
[314267278,1708129845982,-500.0,0.00052465,60]
[314267279,1708129845992,-898.43,0.00052465,60]
[314267280,1708129846001,-500.0,0.00052465,60]
[314267281,1708129846011,-500.0,0.00052465,60]
[314267282,1708129846021,-906.17,0.00052465,60]
[314267283,1708129846034,-500.0,0.00052465,60]
[314267284,1708129846043,-500.0,0.00052465,60]
[314267285,1708129846053,-3972.3,0.00052465,60]
[314267286,1708129846063,-500.0,0.00052465,60]
[314267287,1708129846198,-627.44,0.00052465,60]
[314267288,1708129846230,-522.42,0.00052465,60]
[314267289,1708129846240,-500.0,0.00052465,60]
[314267290,1708129846250,-656.94,0.00052465,60]
[314267291,1708129846259,-1056.56,0.00052465,14]
[314267292,1708129846269,-518.87,0.00052465,60]
[314267293,1708129846279,-675.21,0.00052465,60]
[314267294,1708129846289,-2600.75,0.00052465,60]
[314267295,1708129846299,-500.0,0.00052465,2]
[314267296,1708129846308,-500.0,0.00052465,60]
[314267297,1708129846318,-500.0,0.00052602,60]
[314267298,1708129846329,-1203.6,0.00052602,60]
[314267299,1708129846339,-500.0,0.00052602,60]
[314267300,1708129846349,-500.0,0.00052602,60]
[314267301,1708129846359,-500.0,0.00052602,60]
[314267302,1708129846368,-1246.43,0.00052602,60]
[314267303,1708129846378,-500.0,0.00052602,60]
[314267304,1708129846387,-1596.32,0.00052602,60]
[314267305,1708129846397,-500.0,0.00052602,60]
[314267306,1708129846406,-500.0,0.00052602,60]
[314267307,1708129846416,-614.97,0.00052602,60]
[314267308,1708129846426,-4240.9,0.00052602,60]
[314267309,1708129846435,-10798.57,0.00052602,60]
[314267310,1708129846444,-588.43,0.00052602,60]
[314267311,1708129846453,-500.0,0.00052602,60]
[314267312,1708129846463,-500.0,0.00052639,60]
[314267313,1708129846472,-500.0,0.00052639,60]
[314267314,1708129846481,-500.0,0.00052639,60]
[314267315,1708129846491,-500.0,0.00052639,60]
[314267316,1708129846500,-500.0,0.00052639,60]
[314267317,1708129846511,-658.42,0.00052639,60]
[314267318,1708129846520,-855.06,0.00052639,60]
[314267319,1708129846530,-500.0,0.00052639,60]
[314267320,1708129846539,-806.06,0.00052639,60]
[314267321,1708129846548,-500.0,0.00052639,60]
[314267322,1708129846558,-500.0,0.00052639,60]
[314267323,1708129846568,-500.0,0.00052639,60]
[314267324,1708129846578,-901.77,0.000527,4]
[314267325,1708129846587,-500.0,0.00052739,60]
[314267326,1708129846597,-800.16,0.00052739,60]
[314267327,1708129846606,-348.12,0.00052739,60]
[314267328,1708129846615,-520.94,0.00052739,60]
[314267329,1708129846624,-590.03,0.00052739,60]
[314267330,1708129846634,-500.0,0.00052739,60]
[314267331,1708129846643,-500.0,0.00052739,60]
[314267332,1708129846652,-522.44,0.00052739,60]
[314267333,1708129846661,-500.0,0.00052739,60]
[314267334,1708129846671,-500.0,0.00052739,60]
[314267335,1708129846681,-500.0,0.00052739,60]
[314267336,1708129846690,-898.43,0.00052739,60]
[314267337,1708129846700,-500.0,0.00052739,60]
[314267338,1708129846709,-500.0,0.00052739,60]
[314267339,1708129846719,-906.17,0.00052739,60]
[314267340,1708129846728,-500.0,0.00052739,60]
[314267341,1708129846746,-500.0,0.00052739,60]
[314267342,1708129846758,-3972.3,0.00052739,60]
[314267343,1708129846768,-500.0,0.00052739,60]
[314267344,1708129846778,-522.42,0.00052739,60]
[314267345,1708129846788,-500.0,0.00052739,60]
[314267346,1708129846798,-656.94,0.00052739,60]
[314267347,1708129846808,-1056.56,0.00052739,14]
[314267348,1708129846818,-518.87,0.00052739,60]
[314267349,1708129846828,-675.21,0.00052739,60]
[314267350,1708129846838,-2600.75,0.00052739,60]
[314267351,1708129846847,-500.0,0.00052739,2]
[314267352,1708129846857,-500.0,0.00052739,60]
[314267353,1708129846866,-468.4522667,0.00052803,2]
[314267354,1708129846876,-729.48022721,0.00052813,2]
[314267355,1708129846885,-500.0,0.00052876,60]
[314267356,1708129846895,-1203.6,0.00052876,60]
[314267357,1708129846904,-500.0,0.00052876,60]
[314267358,1708129846914,-500.0,0.00052876,60]
[314267359,1708129846924,-500.0,0.00052876,60]
[314267360,1708129846933,-1246.43,0.00052876,60]
[314267361,1708129846943,-565.15,0.00052876,60]
[314267362,1708129846953,-1596.32,0.00052876,60]
[314267363,1708129846963,-500.0,0.00052876,60]
[314267364,1708129846972,-500.0,0.00052876,60]
[314267365,1708129846982,-614.97,0.00052876,60]
[314267366,1708129846991,-4240.9,0.00052876,60]
[314267367,1708129847001,-10798.57,0.00052876,60]
[314267368,1708129847013,-588.43,0.00052876,60]
[314267369,1708129847023,-500.0,0.00052876,60]
[314267370,1708129847035,-25000.0,0.000529,120]
[314267371,1708129847045,-10382.30866752,0.00052903,2]
[314267372,1708129847055,-67495.5587719,0.00052903,12]
[314267373,1708129847065,-603.23,0.00052913,60]
[314267374,1708129847074,-500.0,0.00052913,60]
[314267375,1708129847084,-500.0,0.00052913,60]
[314267376,1708129847094,-500.0,0.00052913,60]
[314267377,1708129847103,-500.0,0.00052913,60]
[314267378,1708129847115,-658.42,0.00052913,60]
[314267379,1708129847124,-855.06,0.00052913,60]
[314267380,1708129847133,-286.49,0.00052913,60]
[314267381,1708129847143,-806.06,0.00052913,60]
[314267382,1708129847152,-500.0,0.00052913,60]
[314267383,1708129847162,-500.0,0.00052913,60]
[314267384,1708129847172,-500.0,0.00052913,60]
[314267385,1708129847181,-163.0,0.00052955,120]
[314267386,1708129847190,-4141.2,0.00052957,117]
[314267387,1708129847200,-500.0,0.00052999,60]
[314267388,1708129847210,-289.23273322,0.00052999,60]
[314267389,1708129847219,-739.53,0.00052999,120]
[314267390,1708129847229,-500.0,0.00052999,2]
[314267391,1708129847239,-500.0,0.00052999,60]
[314267392,1708129847249,-5000.0,0.00053,62]
[314267393,1708129847258,-3000.0,0.00053,47]
[314267394,1708129847267,-500.0,0.00053013,60]
[314267395,1708129847277,-800.16,0.00053013,60]
[314267396,1708129847289,-520.94,0.00053013,60]
[314267397,1708129847299,-590.03,0.00053013,60]
[314267398,1708129847309,-500.0,0.00053013,60]
[314267399,1708129847319,-500.0,0.00053013,60]
[314267400,1708129847329,-522.44,0.00053013,60]
[314267401,1708129847339,-500.0,0.00053013,60]
[314267402,1708129847350,-500.0,0.00053013,60]
[314267403,1708129847359,-582.19,0.00053013,60]
[314267404,1708129847369,-898.43,0.00053013,60]
[314267405,1708129847378,-500.0,0.00053013,60]
[314267406,1708129847388,-500.0,0.00053013,60]
[314267407,1708129847397,-906.17,0.00053013,60]
[314267408,1708129847406,-347.92,0.00053013,60]
[314267409,1708129847416,-500.0,0.00053013,60]
[314267410,1708129847426,-3972.3,0.00053013,60]
[314267411,1708129847435,-500.0,0.00053013,60]
[314267412,1708129847445,-522.42,0.00053013,60]
[314267413,1708129847455,-500.0,0.00053013,60]
[314267414,1708129847464,-656.94,0.00053013,60]
[314267415,1708129847474,-1056.56,0.00053013,14]
[314267416,1708129847483,-518.87,0.00053013,60]
[314267417,1708129847493,-675.21,0.00053013,60]
[314267418,1708129847503,-2600.75,0.00053013,60]
[314267419,1708129847513,-500.0,0.00053013,2]
[314267420,1708129847522,-500.0,0.00053013,60]
[314267421,1708129847533,-151.021788,0.00053148,54]
[314267422,1708129847543,-500.0,0.0005315,60]
[314267423,1708129847553,-1203.6,0.0005315,60]
[314267424,1708129847565,-500.0,0.0005315,60]
[314267425,1708129847575,-500.0,0.0005315,60]
[314267426,1708129847584,-500.0,0.0005315,60]
[314267427,1708129847594,-1246.43,0.0005315,60]
[314267428,1708129847604,-1596.32,0.0005315,60]
[314267429,1708129847614,-500.0,0.0005315,60]
[314267430,1708129847624,-500.0,0.0005315,60]
[314267431,1708129847634,-614.97,0.0005315,60]
[314267432,1708129847643,-4240.9,0.0005315,60]
[314267433,1708129847653,-10798.57,0.0005315,60]
[314267434,1708129847663,-588.43,0.0005315,60]
[314267435,1708129847673,-500.0,0.0005315,60]
[314267436,1708129847683,-1192.70575605,0.00053187,14]
[314267437,1708129847693,-644.71909975,0.00053187,60]
[314267438,1708129847702,-500.0,0.00053187,60]
[314267439,1708129847712,-500.0,0.00053187,60]
[314267440,1708129847721,-500.0,0.00053187,60]
[314267441,1708129847731,-658.42,0.00053187,60]
[314267442,1708129847742,-855.06,0.00053187,60]
[314267443,1708129847752,-806.06,0.00053187,60]
[314267444,1708129847762,-500.0,0.00053187,60]
[314267445,1708129847773,-500.0,0.00053187,60]
[314267446,1708129847783,-500.0,0.00053187,60]
[314267447,1708129847792,-256.04986775,0.000532,120]
[314267448,1708129847802,-256.04986772,0.000532,120]
[314267449,1708129847811,-256.04986772,0.000532,120]
[314267450,1708129847821,-256.04986772,0.000532,120]
[314267451,1708129847830,-500.0,0.00053273,60]
[314267452,1708129847840,-739.53,0.00053273,120]
[314267453,1708129847849,-500.0,0.00053273,2]
[314267454,1708129847859,-500.0,0.00053273,60]
[314267455,1708129847869,-500.0,0.00053287,60]
[314267456,1708129847878,-800.16,0.00053287,60]
[314267457,1708129847888,-520.94,0.00053287,60]
[314267458,1708129847898,-590.03,0.00053287,60]
[314267459,1708129847908,-500.0,0.00053287,60]
[314267460,1708129847918,-500.0,0.00053287,60]
[314267461,1708129847928,-522.44,0.00053287,60]
[314267462,1708129847938,-500.0,0.00053287,60]
[314267463,1708129847948,-500.0,0.00053287,60]
[314267464,1708129847957,-898.43,0.00053287,60]
[314267465,1708129847966,-521.57845809,0.00053287,60]
[314267466,1708129847976,-500.0,0.00053287,60]
[314267467,1708129847986,-906.17,0.00053287,60]
[314267468,1708129847995,-354.4724299,0.00053287,60]
[314267469,1708129848006,-3972.3,0.00053287,60]
[314267470,1708129848015,-500.0,0.00053287,60]
[314267471,1708129848027,-522.42,0.00053287,60]
[314267472,1708129848037,-500.0,0.00053287,60]
[314267473,1708129848047,-656.94,0.00053287,60]
[314267474,1708129848056,-1056.56,0.00053287,14]
[314267475,1708129848066,-518.87,0.00053287,60]
[314267476,1708129848075,-675.21,0.00053287,60]
[314267477,1708129848085,-2600.75,0.00053287,60]
[314267478,1708129848095,-500.0,0.00053287,2]
[314267479,1708129848105,-500.0,0.00053287,60]
[314267480,1708129848115,-2432.0086193,0.0005335,2]
[314267481,1708129848125,-25000.0,0.000534,120]
[314267482,1708129848134,-552.08,0.00053424,60]
[314267483,1708129848143,-1203.6,0.00053424,60]
[314267484,1708129848152,-500.0,0.00053424,60]
[314267485,1708129848162,-166.3396773,0.00053424,60]
[314267486,1708129848171,-500.0,0.00053424,60]
[314267487,1708129848181,-1246.43,0.00053424,60]
[314267488,1708129848190,-1596.32,0.00053424,60]
[314267489,1708129848200,-500.0,0.00053424,60]
[314267490,1708129848210,-500.0,0.00053424,60]
[314267491,1708129848219,-614.97,0.00053424,60]
[314267492,1708129848229,-4240.9,0.00053424,60]
[314267493,1708129848238,-10798.57,0.00053424,60]
[314267494,1708129848247,-588.43,0.00053424,60]
[314267495,1708129848256,-427.72,0.00053424,60]
[314267496,1708129848266,-150.0,0.00053425,60]
[314267497,1708129848275,-150.0,0.00053425,30]
[314267498,1708129848284,-591.0,0.00053425,30]
[314267499,1708129848293,-151.0,0.00053425,30]
[314267500,1708129848303,-152.35,0.00053425,30]
[314267501,1708129848312,-151.021788,0.00053448,58]
[314267502,1708129848322,-530.81370028,0.00053461,60]
[314267503,1708129848332,-500.0,0.00053461,60]
[314267504,1708129848341,-500.0,0.00053461,60]
[314267505,1708129848352,-658.42,0.00053461,60]
[314267506,1708129848361,-855.06,0.00053461,60]
[314267507,1708129848370,-806.06,0.00053461,60]
[314267508,1708129848380,-500.0,0.00053461,60]
[314267509,1708129848389,-500.0,0.00053461,60]
[314267510,1708129848398,-415.22534201,0.00053461,60]
[314267511,1708129848407,-2582.14,0.00053471,120]
[314267512,1708129848417,-1192.7057559,0.00053477,14]
[314267513,1708129848426,-163.0,0.00053503,120]
[314267514,1708129848435,-500.0,0.00053547,60]
[314267515,1708129848444,-739.53,0.00053547,120]
[314267516,1708129848454,-500.0,0.00053547,2]
[314267517,1708129848463,-500.0,0.00053547,60]
[314267518,1708129848473,-500.0,0.00053561,60]
[314267519,1708129848482,-800.16,0.00053561,60]
[314267520,1708129848491,-520.94,0.00053561,60]
[314267521,1708129848500,-590.03,0.00053561,60]
[314267522,1708129848510,-500.0,0.00053561,60]
[314267523,1708129848519,-216.15,0.00053561,60]
[314267524,1708129848585,-522.44,0.00053561,60]
[314267525,1708129848595,-500.0,0.00053561,60]
[314267526,1708129848605,-500.0,0.00053561,60]
[314267527,1708129848614,-898.43,0.00053561,60]
[314267528,1708129848623,-500.0,0.00053561,60]
[314267529,1708129848633,-906.17,0.00053561,60]
[314267530,1708129848644,-3972.3,0.00053561,60]
[314267531,1708129848655,-500.0,0.00053561,60]
[314267532,1708129848665,-522.42,0.00053561,60]
[314267533,1708129848675,-613.14087466,0.00053561,60]
[314267534,1708129848685,-656.94,0.00053561,60]
[314267535,1708129848694,-1056.56,0.00053561,14]
[314267536,1708129848704,-518.87,0.00053561,60]
[314267537,1708129848714,-675.21,0.00053561,60]
[314267538,1708129848724,-2600.75,0.00053561,60]
[314267539,1708129848733,-500.0,0.00053561,60]
[314267540,1708129848742,-1203.6,0.00053698,60]
[314267541,1708129848751,-500.0,0.00053698,60]
[314267542,1708129848760,-500.0,0.00053698,60]
[314267543,1708129848770,-1246.43,0.00053698,60]
[314267544,1708129848779,-1596.32,0.00053698,60]
[314267545,1708129848788,-500.0,0.00053698,60]
[314267546,1708129848798,-500.0,0.00053698,60]
[314267547,1708129848807,-614.97,0.00053698,60]
[314267548,1708129848817,-4240.9,0.00053698,60]
[314267549,1708129848826,-10798.57,0.00053698,60]
[314267550,1708129848835,-588.43,0.00053698,60]
[314267551,1708129848845,-500.0,0.00053735,60]
[314267552,1708129848854,-563.38374912,0.00053735,60]
[314267553,1708129848863,-658.42,0.00053735,60]
[314267554,1708129848872,-855.06,0.00053735,60]
[314267555,1708129848881,-806.06,0.00053735,60]
[314267556,1708129848890,-634.91,0.00053735,60]
[314267557,1708129848900,-582.80512208,0.00053735,60]
[314267558,1708129848908,-1192.7057559,0.00053767,14]
[314267559,1708129848917,-604.92145011,0.00053821,60]
[314267560,1708129848926,-739.53,0.00053821,120]
[314267561,1708129848936,-500.0,0.00053821,2]
[314267562,1708129848945,-500.0,0.00053821,60]
[314267563,1708129848954,-500.0,0.00053835,60]
[314267564,1708129848963,-800.16,0.00053835,60]
[314267565,1708129848973,-520.94,0.00053835,60]
[314267566,1708129848982,-590.03,0.00053835,60]
[314267567,1708129848991,-500.0,0.00053835,60]
[314267568,1708129849001,-522.44,0.00053835,60]
[314267569,1708129849011,-500.0,0.00053835,60]
[314267570,1708129849020,-500.0,0.00053835,60]
[314267571,1708129849033,-898.43,0.00053835,60]
[314267572,1708129849042,-436.53809064,0.00053835,60]
[314267573,1708129849052,-906.17,0.00053835,60]
[314267574,1708129849062,-3972.3,0.00053835,60]
[314267575,1708129849071,-500.0,0.00053835,60]
[314267576,1708129849080,-522.42,0.00053835,60]
[314267577,1708129849090,-656.94,0.00053835,60]
[314267578,1708129849100,-1056.56,0.00053835,14]
[314267579,1708129849111,-518.87,0.00053835,60]
[314267580,1708129849122,-675.21,0.00053835,60]
[314267581,1708129849131,-2600.75,0.00053835,60]
[314267582,1708129849141,-500.0,0.00053835,60]
[314267583,1708129849150,-20305.42904711,0.00053838,30]
[314267584,1708129849159,-434.31,0.00053864,2]
[314267585,1708129849168,-1532.23215434,0.00053871,14]
[314267586,1708129849178,-145671.014062,0.000539,120]
[314267587,1708129849188,-205.0,0.00053937,20]
[314267588,1708129849200,-205.0,0.00053937,20]
[314267589,1708129849210,-205.0,0.00053937,20]
[314267590,1708129849220,-1203.6,0.00053972,60]
[314267591,1708129849230,-482.85,0.00053972,60]